[Event "XII Paracin Festival 2019"]
[Site "Paracin"]
[Date "2019.07.09"]
[Round "5.1"]
[White "Bashirli, Nail"]
[Black "Avalyan, Artur"]
[Result "1-0"]
[ECO "C00"]
[WhiteElo "2367"]
[BlackElo "2351"]
[Annotator "NA"]
[PlyCount "71"]
[EventDate "2019.07.05"]
[EventType "swiss"]
[EventCountry "SRB"]
[SourceTitle "playchess.com"]
[Source "ChessBase"]
[SourceQuality "1"]
[TimeControl "5400+30"]

1. e4 {[%emt 0:09:22]} e6 {[%emt 0:00:00]} 2. d3 {[%emt 0:00:03]} d5 {[%emt 0:00:00]} 3. Qe2 {[%emt 0:00:03]} Nf6 {[%emt 0:00:34]} 4. Nf3 {[%emt 0:00:18]} Be7 {[%emt 0:00:51]} 5. g3 {[%emt 0:00:13]} b5 {[%emt 0:02:02]} 6. Bg2 {[%emt 0:01:10]} O-O {[%emt 0:01:35]} 7. O-O {[%emt 0:01:08]} c5 {[%emt 0:00:18]} 8. Re1 {[%emt 0:01:14]} Nc6 {[%emt 0:02:23]} 9. a4 {[%emt 0:03:43]} b4 {[%emt 0:02:35]} 10. Bg5 {[%emt 0:08:25]} h6 {[%emt 0:02:28]} 11. Bf4 {[%emt 0:00:05]} a5 {[%emt 0:05:49]} 12. Nbd2 {[%emt 0:12:29]} Ba6 {[%emt 0:07:18]} 13. Ne5 {[%emt 0:03:23]} Nxe5 {[%emt 0:16:20]} 14. Bxe5 {[%emt 0:00:04]} Rc8 {[%emt 0:01:34]} 15. exd5 {[%emt 0:01:35]} exd5 {[%emt 0:04:14]} 16. Nf3 {[%emt 0:00:24]} Re8 {[%emt 0:06:40]} 17. Bh3 {[%emt 0:11:37]} Ra8 {[%emt 0:19:52]} 18. Nh4 {[%emt 0:08:07]} Ne4 {[%emt 0:03:47]} 19. Qg4 {[%emt 0:03:33]} Bf6 {[%emt 0:00:55]} 20. Bxf6 {[%emt 0:01:21]} Nxf6 {[%emt 0:00:07]} 21. Qf3 {[%emt 0:04:04]} Bc8 {[%emt 0:03:12]} 22. Bxc8 {[%emt 0:02:37]} Rxc8 {[%emt 0:00:04]} 23. Nf5 {[%emt 0:00:16]} Rc6 {[%emt 0:00:27]} 24. Rxe8+ {[%emt 0:01:28]} Qxe8 {[%emt 0:00:13]} 25. c3 {[%emt 0:00:25]} Kh7 {[%emt 0:03:28]} 26. cxb4 {[%emt 0:00:57]} axb4 {[%emt 0:01:46]} 27. Rc1 {[%emt 0:01:21]} b3 {[%emt 0:03:18]} 28. Kg2 {[%emt 0:00:55]} g6 {[%emt 0:02:02]} 29. Ne3 {[%emt 0:00:18]} Qe5 {[%emt 0:01:03]} 30. Rc3 {[%emt 0:01:21]} Ra6 {[%emt 0:00:27]} 31. Rxc5 {[%emt 0:02:16]} Qxb2 {[%emt 0:00:56]} 32. Rc7 {[%emt 0:04:29]} Kg7 {[%emt 0:00:25]} 33. Qf4 {[%emt 0:00:26]} Qa1 {[%emt 0:03:00]} 34. Ng4 {[%emt 0:03:21]} g5 {[%emt 0:01:29]} 35. Qf5 {[%emt 0:00:03]} Rd6 {[%emt 0:05:21]} 36. Ne5 {[%emt 0:00:24]} 1-0

[Event "XII Paracin Festival 2019"]
[Site "Paracin"]
[Date "2019.07.09"]
[Round "5.2"]
[White "McPhillips, Joseph"]
[Black "Ivanisevic, Ivan"]
[Result "1/2-1/2"]
[ECO "A04"]
[WhiteElo "2412"]
[BlackElo "2612"]
[Annotator "RC"]
[PlyCount "153"]
[EventDate "2019.07.05"]
[EventType "swiss"]
[EventCountry "SRB"]
[SourceTitle "playchess.com"]
[Source "ChessBase"]
[SourceQuality "1"]
[TimeControl "5400+30"]

1. Nf3 {[%emt 0:00:32]} c5 {[%emt 0:00:12]} 2. c4 {[%emt 0:00:04]} Nc6 {[%emt 0:00:16]} 3. Nc3 {[%emt 0:00:13]} g6 {[%emt 0:00:20]} 4. d4 {[%emt 0:00:53]} cxd4 {[%emt 0:00:06]} 5. Nxd4 {[%emt 0:00:04]} Bg7 {[%emt 0:00:05]} 6. Nb3 {[%emt 0:04:56]} d6 {[%emt 0:05:15]} 7. c5 {[%emt 0:03:54]} dxc5 {[%emt 0:08:00]} 8. Qxd8+ {[%emt 0:00:31]} Kxd8 {[%emt 0:00:05]} 9. Nxc5 {[%emt 0:00:20]} Nb4 {[%emt 0:00:36]} 10. Rb1 {[%emt 0:02:16]} b6 {[%emt 0:00:09]} 11. N5a4 {[%emt 0:07:27]} Bd7 {[%emt 0:01:51]} 12. a3 {[%emt 0:03:06]} Nc2+ {[%emt 0:01:29]} 13. Kd1 {[%emt 0:01:00]} Nd4 {[%emt 0:00:44]} 14. b4 {[%emt 0:03:56]} Nb5 {[%emt 0:07:28]} 15. Bb2 {[%emt 0:03:37]} Nd6 {[%emt 0:07:45]} 16. e3 {[%emt 0:03:10]} Nf6 {[%emt 0:01:03]} 17. Ba6 {[%emt 0:07:49]} Bc8 {[%emt 0:05:41]} 18. Bd3 {[%emt 0:02:12]} Ng4 {[%emt 0:01:48]} 19. Ke2 {[%emt 0:00:35]} Bb7 {[%emt 0:02:34]} 20. Rhd1 {[%emt 0:15:03]} Bc6 {[%emt 0:07:31]} 21. Nb5 {[%emt 0:06:01]} Bxb2 {[%emt 0:01:29]} 22. Nxb2 {[%emt 0:00:02]} Ne5 {[%emt 0:02:07]} 23. Nxd6 {[%emt 0:03:40]} exd6 {[%emt 0:00:05]} 24. Nc4 {[%emt 0:01:04]} Nxd3 {[%emt 0:03:49]} 25. Rxd3 {[%emt 0:00:23]} Bb5 {[%emt 0:02:31]} 26. Rxd6+ {[%emt 0:03:33]} Ke7 {[%emt 0:00:08]} 27. Rd4 {[%emt 0:00:03]} Rhc8 {[%emt 0:02:33]} 28. Kd3 {[%emt 0:00:44]} a5 {[%emt 0:19:43]} 29. Kc3 {[%emt 0:11:37]} a4 {[%emt 0:01:17]} 30. Rbd1 {[%emt 0:03:22]} Rc7 {[%emt 0:01:28]} 31. Re4+ {[%emt 0:06:08]} Kf8 {[%emt 0:00:13]} 32. Rdd4 {[%emt 0:00:02]} Rac8 {[%emt 0:00:49]} 33. h4 {[%emt 0:00:13]} f6 {[%emt 0:00:22]} 34. g4 {[%emt 0:01:53]} h6 {[%emt 0:01:47]} 35. g5 {[%emt 0:02:10]} fxg5 {[%emt 0:02:10]} 36. hxg5 {[%emt 0:00:03]} hxg5 {[%emt 0:00:16]} 37. Kd3 {[%emt 0:02:13]} Kg7 {[%emt 0:00:13]} 38. Rg4 {[%emt 0:00:34]} Kh6 {[%emt 0:00:16]} 39. Rge4 {[%emt 0:01:35]} Kh5 {[%emt 0:06:12]} 40. Rg4 {[%emt 0:00:07]} Rc6 {[%emt 0:03:16]} 41. Rge4 {[%emt 0:00:18]} Rf6 {[%emt 0:01:26]} 42. Ke2 {[%emt 0:00:14]} Rfc6 {[%emt 0:01:09]} 43. Kd3 {[%emt 0:00:02]} Kh6 {[%emt 0:00:12]} 44. Rg4 {[%emt 0:00:01]} R6c7 {[%emt 0:00:16]} 45. Rge4 {[%emt 0:00:10]} Ba6 {[%emt 0:00:19]} 46. Rg4 {[%emt 0:02:06]} Rf8 {[%emt 0:00:56]} 47. Rg2 {[%emt 0:01:19]} Rf6 {[%emt 0:01:15]} 48. Rh2+ {[%emt 0:00:29]} Kg7 {[%emt 0:00:05]} 49. Rg2 {[%emt 0:00:01]} Rfc6 {[%emt 0:00:19]} 50. Rgg4 {[%emt 0:00:40]} Kf7 {[%emt 0:00:36]} 51. Rge4 {[%emt 0:00:10]} Kf6 {[%emt 0:00:07]} 52. Rg4 {[%emt 0:00:48]} Bc8 {[%emt 0:00:45]} 53. Rd6+ {[%emt 0:00:46]} Rxd6+ {[%emt 0:02:25]} 54. Nxd6 {[%emt 0:00:02]} Bxg4 {[%emt 0:00:09]} 55. Ne8+ {[%emt 0:00:02]} Ke5 {[%emt 0:00:16]} 56. Nxc7 {[%emt 0:00:02]} Bd7 {[%emt 0:00:41]} 57. Na8 {[%emt 0:00:49]} Bb5+ {[%emt 0:01:02]} 58. Kc3 {[%emt 0:00:12]} Ke4 {[%emt 0:00:15]} 59. Kd2 {[%emt 0:00:49]} g4 {[%emt 0:01:03]} 60. Nxb6 {[%emt 0:00:33]} Kf3 {[%emt 0:00:05]} 61. Ke1 {[%emt 0:00:26]} g3 {[%emt 0:00:06]} 62. fxg3 {[%emt 0:00:03]} Kxg3 {[%emt 0:00:19]} 63. Nd5 {[%emt 0:00:29]} Kf3 {[%emt 0:00:37]} 64. Kd2 {[%emt 0:00:02]} g5 {[%emt 0:00:30]} 65. Nf6 {[%emt 0:00:07]} Bf1 {[%emt 0:01:26]} 66. Ke1 {[%emt 0:00:44]} Ba6 {[%emt 0:00:25]} 67. Kd2 {[%emt 0:00:03]} Bb5 {[%emt 0:00:19]} 68. e4 {[%emt 0:00:27]} Kf4 {[%emt 0:00:05]} 69. Nd5+ {[%emt 0:00:10]} Kf3 {[%emt 0:00:26]} 70. e5 {[%emt 0:01:45]} g4 {[%emt 0:00:44]} 71. e6 {[%emt 0:00:06]} g3 {[%emt 0:00:05]} 72. Ne3 {[%emt 0:00:03]} Ke4 {[%emt 0:00:54]} 73. e7 {[%emt 0:00:21]} Be8 {[%emt 0:00:57]} 74. Ke2 {[%emt 0:00:16]} Bb5+ {[%emt 0:00:03]} 75. Kd2 {[%emt 0:00:07]} Be8 {[%emt 0:00:04]} 76. Ke2 {[%emt 0:00:03]} Bb5+ {[%emt 0:00:03]} 77. Kd2 {[%emt 0:00:03]} 1/2-1/2

[Event "XII Paracin Festival 2019"]
[Site "Paracin"]
[Date "2019.07.09"]
[Round "5.3"]
[White "Korpa, Bence"]
[Black "Kosic, Dragan"]
[Result "1/2-1/2"]
[ECO "C00"]
[WhiteElo "2523"]
[BlackElo "2482"]
[Annotator "ChessBase"]
[PlyCount "111"]
[EventDate "2019.07.05"]
[EventType "swiss"]
[EventCountry "SRB"]
[SourceTitle "playchess.com"]
[Source "ChessBase"]
[SourceQuality "1"]
[TimeControl "5400+30"]

1. e4 {[%emt 0:00:00]} e6 {[%emt 0:00:00]} 2. d3 {[%emt 0:00:00]} d5 {[%emt 0:00:21]} 3. Nd2 {[%emt 0:00:00]} c5 {[%emt 0:01:33]} 4. g3 {[%emt 0:01:37]} Bd6 {[%emt 0:02:57]} 5. Bg2 {[%emt 0:00:28]} Ne7 {[%emt 0:00:07]} 6. f4 {[%emt 0:03:30]} Nbc6 {[%emt 0:00:09]} 7. Ngf3 {[%emt 0:00:11]} O-O {[%emt 0:00:32]} 8. O-O {[%emt 0:02:27]} f6 {[%emt 0:00:32]} 9. Qe2 {[%emt 0:08:39]} Bd7 {[%emt 0:03:21]} 10. c3 {[%emt 0:00:57]} Qb6 {[%emt 0:06:55]} 11. Bh3 {[%emt 0:07:08]} Rae8 {[%emt 0:04:46]} 12. exd5 {[%emt 0:03:30]} Nxd5 {[%emt 0:00:05]} 13. Nc4 {[%emt 0:00:22]} Qc7 {[%emt 0:00:04]} 14. Bd2 {[%emt 0:04:25]} Nb6 {[%emt 0:06:22]} 15. Nxd6 {[%emt 0:02:27]} Qxd6 {[%emt 0:00:06]} 16. Be3 {[%emt 0:09:42]} Nd5 {[%emt 0:04:20]} 17. Bf2 {[%emt 0:00:17]} b6 {[%emt 0:04:07]} 18. Nd2 {[%emt 0:07:10]} e5 {[%emt 0:02:51]} 19. Nc4 {[%emt 0:03:05]} Qc7 {[%emt 0:00:46]} 20. Bg2 {[%emt 0:00:15]} Be6 {[%emt 0:03:45]} 21. fxe5 {[%emt 0:07:34]} Nxe5 {[%emt 0:03:04]} 22. Nxe5 {[%emt 0:00:44]} fxe5 {[%emt 0:01:03]} 23. d4 {[%emt 0:06:08]} cxd4 {[%emt 0:02:46]} 24. cxd4 {[%emt 0:00:05]} Bf7 {[%emt 0:03:04]} 25. Rac1 {[%emt 0:02:29]} Qd6 {[%emt 0:01:23]} 26. dxe5 {[%emt 0:00:11]} Rxe5 {[%emt 0:01:09]} 27. Qa6 {[%emt 0:03:01]} Qe7 {[%emt 0:14:08]} 28. Rfe1 {[%emt 0:10:01]} Nf6 {[%emt 0:12:46]} 29. Qb7 {[%emt 0:07:58]} Rxe1+ {[%emt 0:01:17]} 30. Rxe1 {[%emt 0:00:05]} Qxb7 {[%emt 0:00:17]} 31. Bxb7 {[%emt 0:00:06]} Bxa2 {[%emt 0:00:06]} 32. Ra1 {[%emt 0:00:14]} Rf7 {[%emt 0:00:14]} 33. Bc8 {[%emt 0:05:09]} Bd5 {[%emt 0:00:25]} 34. Re1 {[%emt 0:00:07]} Rc7 {[%emt 0:01:11]} 35. Bf5 {[%emt 0:00:12]} Kf7 {[%emt 0:01:29]} 36. Bd4 {[%emt 0:00:44]} h6 {[%emt 0:00:48]} 37. Bd3 {[%emt 0:00:51]} Be6 {[%emt 0:04:55]} 38. Be5 {[%emt 0:02:50]} Rd7 {[%emt 0:00:53]} 39. Bb5 {[%emt 0:00:52]} Rd5 {[%emt 0:01:12]} 40. Bf1 {[%emt 0:00:07]} Rd2 {[%emt 0:04:42]} 41. Bc3 {[%emt 0:00:49]} Rd7 {[%emt 0:00:25]} 42. Bb5 {[%emt 0:00:17]} Rc7 {[%emt 0:01:07]} 43. Bd3 {[%emt 0:01:53]} Bd5 {[%emt 0:01:07]} 44. Bf5 {[%emt 0:00:23]} Rc6 {[%emt 0:01:35]} 45. Bd3 {[%emt 0:01:16]} a5 {[%emt 0:00:48]} 46. Bd4 {[%emt 0:01:20]} Rd6 {[%emt 0:02:34]} 47. Be5 {[%emt 0:00:19]} Re6 {[%emt 0:00:31]} 48. Bc3 {[%emt 0:00:06]} Rxe1+ {[%emt 0:02:43]} 49. Bxe1 {[%emt 0:00:06]} Bc6 {[%emt 0:00:19]} 50. Bc3 {[%emt 0:01:20]} a4 {[%emt 0:00:30]} 51. Bc4+ {[%emt 0:00:48]} Ke7 {[%emt 0:01:10]} 52. Bb4+ {[%emt 0:00:09]} Ke8 {[%emt 0:00:07]} 53. Bd3 {[%emt 0:00:22]} Kf7 {[%emt 0:01:04]} 54. Bc4+ {[%emt 0:00:21]} Ke8 {[%emt 0:00:41]} 55. Bd3 {[%emt 0:00:05]} Kf7 {[%emt 0:01:08]} 56. Bc4+ {[%emt 0:00:06]} 1/2-1/2

[Event "XII Paracin Festival 2019"]
[Site "Paracin"]
[Date "2019.07.09"]
[Round "5.4"]
[White "Janzelj, Tim"]
[Black "Vishnu Prasanna. V"]
[Result "1/2-1/2"]
[ECO "A04"]
[WhiteElo "2416"]
[BlackElo "2505"]
[Annotator "ChessBase"]
[PlyCount "78"]
[EventDate "2019.07.05"]
[EventType "swiss"]
[EventCountry "SRB"]
[SourceTitle "playchess.com"]
[Source "ChessBase"]
[SourceQuality "1"]
[TimeControl "5400+30"]

1. Nf3 {[%emt 0:01:45]} c5 {[%emt 0:00:00]} 2. c4 {[%emt 0:00:47]} Nc6 {[%emt 0:00:00]} 3. b3 {[%emt 0:01:06]} e5 {[%emt 0:00:48]} 4. Bb2 {[%emt 0:03:26]} d6 {[%emt 0:03:29]} 5. e3 {[%emt 0:03:44]} g6 {[%emt 0:03:33]} 6. d4 {[%emt 0:03:59]} exd4 {[%emt 0:00:20]} 7. exd4 {[%emt 0:00:13]} Bg7 {[%emt 0:00:13]} 8. Qd2 {[%emt 0:04:08]} cxd4 {[%emt 0:07:52]} 9. Na3 {[%emt 0:08:45]} Bg4 {[%emt 0:07:14]} 10. Be2 {[%emt 0:03:34]} Bxf3 {[%emt 0:04:36]} 11. Bxf3 {[%emt 0:04:17]} Nge7 {[%emt 0:00:10]} 12. O-O {[%emt 0:01:14]} O-O {[%emt 0:01:14]} 13. Nc2 {[%emt 0:08:48]} d5 {[%emt 0:09:12]} 14. c5 {[%emt 0:02:57]} Nf5 {[%emt 0:01:24]} 15. Bg4 {[%emt 0:03:14]} d3 {[%emt 0:04:20]} 16. Bxg7 {[%emt 0:01:24]} Nxg7 {[%emt 0:00:21]} 17. Ne1 {[%emt 0:11:39]} Qh4 {[%emt 0:09:50]} 18. Bh3 {[%emt 0:05:13]} Nd4 {[%emt 0:01:23]} 19. Qxd3 {[%emt 0:00:58]} Qe4 {[%emt 0:00:39]} 20. Rd1 {[%emt 0:05:36]} Ne2+ {[%emt 0:01:29]} 21. Kh1 {[%emt 0:00:01]} Nf4 {[%emt 0:00:14]} 22. Qxe4 {[%emt 0:02:24]} dxe4 {[%emt 0:00:11]} 23. Bd7 {[%emt 0:00:20]} Rfd8 {[%emt 0:09:24]} 24. b4 {[%emt 0:01:13]} a5 {[%emt 0:03:37]} 25. b5 {[%emt 0:01:26]} Nge6 {[%emt 0:08:19]} 26. c6 {[%emt 0:01:07]} bxc6 {[%emt 0:00:10]} 27. bxc6 {[%emt 0:02:55]} Nc5 {[%emt 0:00:32]} 28. g3 {[%emt 0:04:31]} Nfe6 {[%emt 0:03:34]} 29. Nc2 {[%emt 0:02:06]} Nxd7 {[%emt 0:03:04]} 30. Rxd7 {[%emt 0:00:29]} Rxd7 {[%emt 0:00:40]} 31. cxd7 {[%emt 0:00:01]} Nc5 {[%emt 0:00:07]} 32. Rd1 {[%emt 0:00:51]} Nd3 {[%emt 0:00:18]} 33. Kg2 {[%emt 0:05:18]} Rd8 {[%emt 0:00:48]} 34. Ne1 {[%emt 0:00:12]} Ne5 {[%emt 0:04:50]} 35. Rd5 {[%emt 0:00:18]} f6 {[%emt 0:00:02]} 36. Rd4 {[%emt 0:04:45]} f5 {[%emt 0:00:50]} 37. Rd5 {[%emt 0:00:12]} Ng4 {[%emt 0:00:04]} 38. Nc2 {[%emt 0:00:18]} Kf7 {[%emt 0:01:45]} 39. Nd4 {[%emt 0:01:22]} Nf6 {[%emt 0:00:28]} 1/2-1/2

[Event "XII Paracin Festival 2019"]
[Site "Paracin"]
[Date "2019.07.09"]
[Round "5.5"]
[White "Ratkovic, Milovan"]
[Black "Asadli, Vugar"]
[Result "1-0"]
[ECO "A45"]
[WhiteElo "2407"]
[BlackElo "2502"]
[Annotator "ChessBase"]
[PlyCount "25"]
[EventDate "2019.07.05"]
[EventType "swiss"]
[EventCountry "SRB"]
[SourceTitle "playchess.com"]
[Source "ChessBase"]
[SourceQuality "1"]
[TimeControl "5400+30"]

1. d4 {[%emt 0:01:09]} Nf6 {[%emt 0:06:23]} 2. Bg5 {[%emt 0:00:19]} Ne4 {[%emt 0:00:13]} 3. h4 {[%emt 0:00:11]} d5 {[%emt 0:00:28]} 4. Nd2 {[%emt 0:00:35]} Nxg5 {[%emt 0:02:05]} 5. hxg5 {[%emt 0:00:14]} c5 {[%emt 0:00:06]} 6. dxc5 {[%emt 0:06:33]} e6 {[%emt 0:00:17]} 7. e4 {[%emt 0:14:41]} Bxc5 {[%emt 0:09:44]} 8. Bb5+ {[%emt 0:05:07]} Nc6 {[%emt 0:03:45]} 9. Qe2 {[%emt 0:02:31]} a6 {[%emt 0:05:23]} 10. Bxc6+ {[%emt 0:01:35]} bxc6 {[%emt 0:00:03]} 11. Ngf3 {[%emt 0:00:47]} a5 {[%emt 0:10:22]} 12. exd5 {[%emt 0:04:14]} cxd5 {[%emt 0:00:08]} 13. Qb5+ {[%emt 0:01:35]} 1-0

[Event "XII Paracin Festival 2019"]
[Site "Paracin"]
[Date "2019.07.09"]
[Round "5.6"]
[White "Martic, Ivan"]
[Black "Sanal, Vahap"]
[Result "1-0"]
[ECO "A45"]
[WhiteElo "2392"]
[BlackElo "2520"]
[Annotator "ChessBase"]
[PlyCount "145"]
[EventDate "2019.07.05"]
[EventType "swiss"]
[EventCountry "SRB"]
[SourceTitle "playchess.com"]
[Source "ChessBase"]
[SourceQuality "1"]
[TimeControl "5400+30"]

1. d4 {[%emt 0:00:00]} Nf6 {[%emt 0:01:14]} 2. Bg5 {[%emt 0:00:04]} e6 {[%emt 0:01:42]} 3. e4 {[%emt 0:02:17]} h6 {[%emt 0:00:11]} 4. Bxf6 {[%emt 0:00:04]} Qxf6 {[%emt 0:00:11]} 5. c3 {[%emt 0:00:16]} d6 {[%emt 0:00:10]} 6. Bd3 {[%emt 0:00:24]} g5 {[%emt 0:11:53]} 7. Ne2 {[%emt 0:03:37]} h5 {[%emt 0:03:06]} 8. O-O {[%emt 0:10:13]} e5 {[%emt 0:03:24]} 9. Na3 {[%emt 0:04:30]} h4 {[%emt 0:03:54]} 10. f3 {[%emt 0:03:55]} Bg7 {[%emt 0:02:30]} 11. Qa4+ {[%emt 0:11:35]} c6 {[%emt 0:01:27]} 12. Rad1 {[%emt 0:01:31]} Nd7 {[%emt 0:02:37]} 13. Qb4 {[%emt 0:06:21]} a5 {[%emt 0:08:44]} 14. Qb3 {[%emt 0:00:25]} O-O {[%emt 0:00:47]} 15. Nc4 {[%emt 0:03:07]} Rd8 {[%emt 0:08:54]} 16. Ne3 {[%emt 0:05:08]} a4 {[%emt 0:00:36]} 17. Qc2 {[%emt 0:01:36]} Nf8 {[%emt 0:00:36]} 18. Bc4 {[%emt 0:05:53]} Ng6 {[%emt 0:08:02]} 19. a3 {[%emt 0:04:46]} Re8 {[%emt 0:14:37]} 20. Ba2 {[%emt 0:11:26]} Kh8 {[%emt 0:05:23]} 21. Qd2 {[%emt 0:00:59]} Bf8 {[%emt 0:05:54]} 22. Rf2 {[%emt 0:06:43]} b6 {[%emt 0:01:15]} 23. g3 {[%emt 0:03:34]} Ba6 {[%emt 0:05:31]} 24. Bc4 {[%emt 0:02:37]} b5 {[%emt 0:03:42]} 25. Ba2 {[%emt 0:00:31]} Rad8 {[%emt 0:00:39]} 26. d5 {[%emt 0:00:40]} c5 {[%emt 0:00:17]} 27. c4 {[%emt 0:00:32]} Rb8 {[%emt 0:00:39]} 28. cxb5 {[%emt 0:04:03]} Bxb5 {[%emt 0:00:03]} 29. Nc3 {[%emt 0:00:19]} Bd7 {[%emt 0:00:08]} 30. Bc4 {[%emt 0:00:31]} Rb7 {[%emt 0:01:18]} 31. Qe2 {[%emt 0:00:29]} Reb8 {[%emt 0:00:29]} 32. Rd2 {[%emt 0:00:11]} Be7 {[%emt 0:01:29]} 33. Ba6 {[%emt 0:01:24]} Rb6 {[%emt 0:00:27]} 34. Bd3 {[%emt 0:00:14]} Bd8 {[%emt 0:01:11]} 35. Qd1 {[%emt 0:01:15]} Ra8 {[%emt 0:00:32]} 36. Qf1 {[%emt 0:01:04]} Rbb8 {[%emt 0:02:04]} 37. Bb5 {[%emt 0:01:25]} Bxb5 {[%emt 0:00:31]} 38. Nxb5 {[%emt 0:00:05]} c4 {[%emt 0:00:12]} 39. Qxc4 {[%emt 0:02:35]} Bb6 {[%emt 0:00:04]} 40. Nf5 {[%emt 0:00:20]} Rc8 {[%emt 0:02:47]} 41. Qf1 {[%emt 0:00:16]} Bxf2+ {[%emt 0:00:35]} 42. Rxf2 {[%emt 0:02:13]} Ra6 {[%emt 0:00:28]} 43. Qd1 {[%emt 0:01:18]} Qd8 {[%emt 0:00:41]} 44. Kg2 {[%emt 0:00:28]} Kg8 {[%emt 0:00:24]} 45. Rc2 {[%emt 0:00:35]} Rb8 {[%emt 0:00:23]} 46. Qc1 {[%emt 0:00:40]} Kh7 {[%emt 0:00:44]} 47. Nc7 {[%emt 0:00:46]} Rab6 {[%emt 0:00:32]} 48. Kh3 {[%emt 0:00:20]} R6b7 {[%emt 0:00:31]} 49. Na6 {[%emt 0:00:22]} Ra8 {[%emt 0:00:03]} 50. Rc6 {[%emt 0:00:32]} Rd7 {[%emt 0:00:28]} 51. Nc7 {[%emt 0:00:44]} Rb8 {[%emt 0:00:19]} 52. Na6 {[%emt 0:00:22]} Rb3 {[%emt 0:00:34]} 53. Kg4 {[%emt 0:00:07]} Qg8 {[%emt 0:01:06]} 54. Qxg5 {[%emt 0:00:44]} Ne7 {[%emt 0:00:01]} 55. Qxg8+ {[%emt 0:00:46]} Kxg8 {[%emt 0:00:59]} 56. Nxe7+ {[%emt 0:00:28]} Rxe7 {[%emt 0:00:01]} 57. Rxd6 {[%emt 0:00:12]} hxg3 {[%emt 0:00:03]} 58. hxg3 {[%emt 0:00:11]} Rxb2 {[%emt 0:00:05]} 59. Nc5 {[%emt 0:00:23]} Ra7 {[%emt 0:00:49]} 60. Rc6 {[%emt 0:00:59]} Rc2 {[%emt 0:00:40]} 61. d6 {[%emt 0:00:22]} Rc3 {[%emt 0:00:51]} 62. f4 {[%emt 0:00:22]} exf4 {[%emt 0:00:54]} 63. gxf4 {[%emt 0:00:06]} Kh7 {[%emt 0:00:11]} 64. Kf5 {[%emt 0:00:20]} Ra8 {[%emt 0:00:18]} 65. e5 {[%emt 0:00:39]} Rxa3 {[%emt 0:00:23]} 66. d7 {[%emt 0:00:31]} Rg3 {[%emt 0:00:02]} 67. Nxa4 {[%emt 0:00:34]} Rd8 {[%emt 0:01:01]} 68. Nc5 {[%emt 0:00:38]} Rc3 {[%emt 0:00:08]} 69. e6 {[%emt 0:00:14]} fxe6+ {[%emt 0:00:05]} 70. Nxe6 {[%emt 0:00:42]} Rxc6 {[%emt 0:01:20]} 71. Nxd8 {[%emt 0:00:05]} Rc5+ {[%emt 0:00:02]} 72. Kf6 {[%emt 0:00:25]} Rc4 {[%emt 0:01:27]} 73. Ne6 {[%emt 0:00:13]} 1-0

[Event "XII Paracin Festival 2019"]
[Site "Paracin"]
[Date "2019.07.09"]
[Round "5.7"]
[White "Lorparizangeneh, Shahin"]
[Black "Tanriverdi, Enes"]
[Result "1-0"]
[ECO "E73"]
[WhiteElo "2494"]
[BlackElo "2374"]
[Annotator "ChessBase"]
[PlyCount "59"]
[EventDate "2019.07.05"]
[EventType "swiss"]
[EventCountry "SRB"]
[SourceTitle "playchess.com"]
[Source "ChessBase"]
[SourceQuality "1"]
[TimeControl "5400+30"]

1. c4 {[%emt 0:02:37]} Nf6 {[%emt 0:00:00]} 2. Nc3 {[%emt 0:00:05]} g6 {[%emt 0:00:00]} 3. d4 {[%emt 0:00:10]} Bg7 {[%emt 0:00:00]} 4. e4 {[%emt 0:00:07]} d6 {[%emt 0:00:00]} 5. Be2 {[%emt 0:00:05]} O-O {[%emt 0:00:13]} 6. Bg5 {[%emt 0:00:04]} c5 {[%emt 0:00:11]} 7. d5 {[%emt 0:00:05]} e6 {[%emt 0:00:17]} 8. Qd2 {[%emt 0:01:04]} exd5 {[%emt 0:00:42]} 9. exd5 {[%emt 0:00:06]} Qb6 {[%emt 0:03:33]} 10. Rd1 {[%emt 0:02:37]} Bf5 {[%emt 0:15:59]} 11. f3 {[%emt 0:00:51]} h5 {[%emt 0:07:26]} 12. h3 {[%emt 0:00:24]} Re8 {[%emt 0:11:48]} 13. g4 {[%emt 0:03:11]} Bd7 {[%emt 0:00:05]} 14. Kf1 {[%emt 0:13:13]} Na6 {[%emt 0:03:32]} 15. Rh2 {[%emt 0:09:43]} Re5 {[%emt 0:04:54]} 16. Bxf6 {[%emt 0:08:05]} Bxf6 {[%emt 0:00:07]} 17. f4 {[%emt 0:00:03]} Re7 {[%emt 0:02:09]} 18. gxh5 {[%emt 0:00:11]} Kg7 {[%emt 0:14:29]} 19. Bg4 {[%emt 0:03:16]} Qb4 {[%emt 0:06:23]} 20. Qd3 {[%emt 0:01:38]} Rae8 {[%emt 0:04:27]} 21. Bxd7 {[%emt 0:03:30]} Re3 {[%emt 0:01:39]} 22. a3 {[%emt 0:03:08]} Qb3 {[%emt 0:07:13]} 23. Ba4 {[%emt 0:01:10]} Qb6 {[%emt 0:01:31]} 24. Qd2 {[%emt 0:02:59]} Bxc3 {[%emt 0:00:37]} 25. bxc3 {[%emt 0:00:04]} R8e4 {[%emt 0:00:08]} 26. Bc2 {[%emt 0:01:10]} Rxf4+ {[%emt 0:00:11]} 27. Rf2 {[%emt 0:00:04]} Rxf2+ {[%emt 0:00:13]} 28. Qxf2 {[%emt 0:00:04]} Rxc3 {[%emt 0:00:16]} 29. h6+ {[%emt 0:00:16]} Kxh6 {[%emt 0:00:08]} 30. Qd2+ {[%emt 0:00:03]} 1-0

[Event "XII Paracin Festival 2019"]
[Site "Paracin"]
[Date "2019.07.09"]
[Round "5.8"]
[White "Stojanovic, Mihajlo"]
[Black "Chen, Peng"]
[Result "1/2-1/2"]
[ECO "A33"]
[WhiteElo "2483"]
[BlackElo "2328"]
[Annotator "ChessBase"]
[PlyCount "40"]
[EventDate "2019.07.05"]
[EventType "swiss"]
[EventCountry "SRB"]
[SourceTitle "playchess.com"]
[Source "ChessBase"]
[SourceQuality "1"]
[TimeControl "5400+30"]

1. Nf3 {[%emt 0:00:00]} Nf6 {[%emt 0:00:33]} 2. c4 {[%emt 0:00:00]} c5 {[%emt 0:00:04]} 3. Nc3 {[%emt 0:00:21]} Nc6 {[%emt 0:00:08]} 4. d4 {[%emt 0:03:32]} cxd4 {[%emt 0:00:22]} 5. Nxd4 {[%emt 0:00:04]} e6 {[%emt 0:00:08]} 6. e3 {[%emt 0:01:00]} Be7 {[%emt 0:02:22]} 7. Be2 {[%emt 0:00:08]} O-O {[%emt 0:00:10]} 8. O-O {[%emt 0:00:05]} a6 {[%emt 0:02:47]} 9. b3 {[%emt 0:00:27]} b6 {[%emt 0:07:02]} 10. Bf3 {[%emt 0:04:44]} Bb7 {[%emt 0:00:53]} 11. Bb2 {[%emt 0:00:07]} Qc7 {[%emt 0:02:23]} 12. Nxc6 {[%emt 0:03:19]} Bxc6 {[%emt 0:00:21]} 13. Rc1 {[%emt 0:03:33]} Bxf3 {[%emt 0:06:46]} 14. Qxf3 {[%emt 0:00:18]} Qc6 {[%emt 0:01:26]} 15. Rfd1 {[%emt 0:14:39]} Qxf3 {[%emt 0:04:21]} 16. gxf3 {[%emt 0:00:05]} Rfd8 {[%emt 0:00:20]} 17. Kf1 {[%emt 0:20:46]} Rab8 {[%emt 0:01:00]} 18. Ke2 {[%emt 0:00:12]} Kf8 {[%emt 0:00:10]} 19. h3 {[%emt 0:00:13]} h6 {[%emt 0:00:06]} 20. Ne4 {[%emt 0:00:26]} Nxe4 {[%emt 0:00:11]} 1/2-1/2